Cogmind - Beta 13 @@@ ROGUE MODE // 2024.04.22 @ 22:33:27 Player: gabagool Result: Destroyed self with Grenade Launcher Performance ------------- Evolutions (0) 0 Regions Visited (1) 200 Robots Destroyed (14) 70 Value Destroyed (365) 365 Prototype IDs (0) 0 Alien Tech Used (0) 0 Bonus (0) 0 TOTAL SCORE: 635 Bonus ------- None Cogmind --------- Core Integrity 0/250 Matter 240/300 Energy 238/250 System Corruption 0% Temperature Warm (145) Movement Rolling (80) Location -10/Materials Parts ------- > --- POWER (1) -------- Ion Engine > --- PROPULSION (2) --- Wheel Wheel > --- UTILITY (2) ------ Small Storage Unit Improved Terrain Scanner > --- WEAPON (2) ------- Particle Gun Grenade Launcher > --- INVENTORY (8) ---- Wheel Medium Matter Pod (49) Peak State ------------ > --- POWER ------------ Ion Engine > --- PROPULSION ------- Wheel Wheel > --- UTILITY ---------- Small Storage Unit Improved Terrain Scanner > --- WEAPON ----------- Particle Gun Grenade Launcher > --- INVENTORY -------- Light Treads Light Treads Light Treads Wheel Medium Matter Pod [Rating: 10] Favorites ----------- Power Ion Engine Engine Ion Engine Propulsion Wheel Wheel Wheel Utility Small Storage Unit Device Improved Terrain Scanner Storage Small Storage Unit Weapon Grenade Launcher Energy Gun Medium Laser Launcher Grenade Launcher Special Weapon Mining Laser Build | -11 -10 ------- Run | Yrd Mat Slots Evolved . | . . Power . | . . Propulsion . | . . Utility . | . . Weapon . | . . Parts Attached 18 | 9 9 Power 2 | 1 1 Engine 2 | 1 1 Core . | . . Reactor . | . . Propulsion 6 | 3 3 Treads . | . . Leg . | . . Wheel 6 | 3 3 Hover . | . . Flight . | . . Utility 4 | 3 1 Device 3 | 2 1 Storage 1 | 1 . Processor . | . . Hackware . | . . Protection . | . . Artifact . | . . Weapon 6 | 2 4 Energy Gun 4 | 2 2 Energy Cannon . | . . Ballistic Gun . | . . Ballistic Cannon . | . . Launcher 1 | . 1 Special Weapon 1 | . 1 Impact Weapon . | . . Slashing Weapon . | . . Piercing Weapon . | . . Special Melee Weapon . | . . Unidentified Prototypes . | . . Parts Lost 7 | . 7 Power 1 | . 1 Propulsion 2 | . 2 Utility 1 | . 1 Weapon 3 | . 3 Highest Loss Streak 6 | . 6 To Critical Strikes . | . . Average Slot Usage (%) 88 | . 88 Engine 13 | . 13 Wheel 24 | . 24 Device 9 | . 9 Storage 14 | . 14 Energy Gun 15 | . 15 Launcher 9 | . 9 Special Weapon 1 | . 1 Naked Turns . | . . Heaviest Build 17 | 13 17 Greatest Support 26 | 26 26 Greatest Overweight (x) 3 | 1 3 Average Overweight (x) . | . . Largest Inventory Capacity 8 | 8 8 Average Capacity 7 | 7 8 Most Carried 8 | 8 8 Average Carried 5 | 5 5 Final Capacity 8 | 8 8 Final Carried 8 | 8 2 Class Distribution -------------------- 69% | Mutant 30% | Scavenger-Mutant Dominant Class ---------------- Mutant | -10/Materials Resources | -11 -10 ----------- Run | Yrd Mat Matter Collected 439 | 280 159 Remotely . | . . Salvage Created 461 | 164 297 Parts 30 | 14 16 Haulers Intercepted 1 | . 1 Recyclers Shooed . | . . Parts Field Recycled . | . . Retrieved Matter . | . . Parts Self-Destructed . | . . Prevented . | . . Kills | -11 -10 ------- Run | Yrd Mat Combat Hostiles Destroyed 7 | . 7 Guns 3 | . 3 AOE 4 | . 4 Classes Destroyed 5 | 2 3 Tunneler 3 | 3 . Hauler 1 | . 1 Recycler 1 | 1 . Watcher 2 | . 2 Grunt 7 | . 7 Best Kill Streak 5 | 3 5 Combat Bots Only 3 | . 3 Max Kills in Single Turn 5 | 1 5 Gunslinging . | . . Exploded 3 | . 3 Melee . | . . Uniques/NPCs Destroyed . | . . Combat | -11 -10 -------- Run | Yrd Mat Hostile Shots Fired 52 | . 52 Missed 3 | . 3 Damage Taken 662 | . 662 Core 251 | . 251 Absorbed by Shields . | . . Core Remaining (%) 100 | 100 . Volleys Fired 49 | 8 41 Largest 2 | 2 2 Hottest 150 | 90 150 Shots Fired 72 | 16 56 Gun 62 | 16 46 Cannon . | . . Launcher 8 | . 8 Special 2 | . 2 Kinetic . | . . Thermal 50 | 8 42 Explosive 8 | . 8 Electromagnetic 14 | 8 6 Robot Hit Streak 7 | 4 7 Robot Miss Streak 3 | 2 3 Penetration Max . | . . Secondary Targets . | . . Shots Hit Robots 38 | 8 30 Core Hits 17 | 4 13 Critical Kills . | . . Critical Parts Destroyed . | . . Critical Strikes 2 | . 2 Burn 2 | . 2 Melee Attacks . | . . Impact . | . . Slashing . | . . Piercing . | . . Sneak Attacks . | . . Combat Hostiles . | . . Follow-up Attacks . | . . Damage Inflicted 1023 | 105 918 Guns 494 | 105 389 Cannons . | . . Explosions 505 | . 505 Melee . | . . Ramming . | . . Kinetic . | . . Thermal 868 | 50 818 Explosive 44 | . 44 Electromagnetic 111 | 55 56 Impact . | . . Slashing . | . . Piercing . | . . Highest Corruption . | . . Average Corruption . | . . Corruption Purged . | . . Corruption Blocked . | . . Overload Shots . | . . Overflow Damage 153 | . 153 Projectiles . | . . Explosions 153 | . 153 Melee . | . . Knockbacks . | . . Impact . | . . Kinetic . | . . Secondary . | . . Self-Inflicted Damage 43 | . 43 Shots 2 | . 2 Rammed . | . . Targets Rammed . | . . Kicked . | . . Crushed . | . . Highest Temperature 384 | 110 384 Average Temperature 130 | 42 151 Received Heat Transfer 372 | . 372 Effects 3 | . 3 Shutdowns 1 | . 1 Energy Bleed 1 | . 1 Damage (minor) 1 | . 1 Siege Activations . | . . Robots Corrupted . | . . Combat Hostiles . | . . Parts Fried . | . . Impact Corruptions . | . . Robots Melted . | . . Combat Hostiles . | . . Parts Melted 3 | 1 2 Heat Transferred 1521 | 148 1373 Parts Sabotaged . | . . Parts Stolen . | . . Parts Stripped . | . . Power Chain Reactions . | . . Alert | -11 -10 ------- Run | Yrd Mat Peak Influence 226 | 20 226 Initial 13 | . 13 Average 77 | 8 96 Maximum Alert Level 1 | . 1 Low Security (%) 77 | 100 71 Level 1 22 | . 28 Level 2 . | . . Level 3 . | . . Level 4 . | . . Level 5 . | . . High Security . | . . Max Security . | . . Squads Dispatched 1 | . 1 Investigation 1 | . 1 Extermination . | . . Reinforcement . | . . Assault . | . . Garrison . | . . Intercept . | . . Searches Triggered . | . . Construction Impeded . | . . Haulers Reinforced . | . . Active Scanning Responses . | . . Cargo Convoy Interrupts . | . . Stealth | -11 -10 --------- Run | Yrd Mat Distress Signals 1 | . 1 Communications Jammed . | . . Distress Signals . | . . Times Spotted 9 | . 9 Peak Tracking Total 4 | . 4 Tactical Retreats . | . . Traps | -11 -10 ------- Run | Yrd Mat Traps Triggered 1 | . 1 Indirectly . | . . Trap Hack Attempts . | . . Triggered . | . . Disarmed . | . . Reprogrammed . | . . Reused . | . . Traps Extracted . | . . Installed . | . . Triggered . | . . Machines | -11 -10 ---------- Run | Yrd Mat Machines Disabled 4 | . 4 Max in Single Turn 3 | . 3 Machines Repaired . | . . Machines Dismantled . | . . Machines Sabotaged . | . . Overloaded Fab Kills . | . . Hacking | -11 -10 --------- Run | Yrd Mat Machines Accessed 3 | . 3 Terminals 2 | . 2 Fabricators . | . . Repair Stations . | . . Recycling Units 1 | . 1 Scanalyzers . | . . Garrison Access . | . . Total Hacks 9 | . 9 Successful 7 | . 7 Failed 2 | . 2 Catastrophic . | . . Database Lockouts . | . . Manual 3 | . 3 Terminals 5 | . 5 Fabricators . | . . Repair Stations . | . . Recycling Units 4 | . 4 Scanalyzers . | . . Garrison Access . | . . Terminal Hacks 1 | . 1 Patrol Status 1 | . 1 Fabricator Hacks . | . . Repair Station Hacks . | . . Recycling Unit Hacks 4 | . 4 Recycle Component 3 | . 3 Retrieve Components 1 | . 1 Scanalyzer . | . . Garrison Access Hacks . | . . Unauthorized Hacks 2 | . 2 Terminals 2 | . 2 Botnet 2 | . 2 Fabricators . | . . Repair Stations . | . . Recycling Units . | . . Scanalyzers . | . . Garrison Access . | . . Data Cores Recovered . | . . Used . | . . Hacking Detections 3 | . 3 Full Trace Events 2 | . 2 Feedback Events . | . . Feedback Blocked . | . . Robot Schematics Acquired . | . . Robots Built . | . . Authchips . | . . Time . | . . Total Robot Build Rating . | . . Part Schematics Acquired . | . . Parts Built . | . . Authchips . | . . Time . | . . Total Part Build Rating . | . . Parts Repaired . | . . Time . | . . Parts Recycled 3 | . 3 Recycled Matter . | . . Retrieved Matter . | . . Retrieved Components 9 | . 9 Parts Scanalyzed . | . . Part Schematics Acquired . | . . Parts Damaged . | . . Bothacking | -11 -10 ------------ Run | Yrd Mat Used RIF Installer . | . . Robots Hacked . | . . Non-combat . | . . Combat . | . . Robot Hacks Applied . | . . Relay Couplers Released . | . . Fabnet Peak Effective % . | . . Robots Rewired . | . . Allies Hacked . | . . Hacks Repelled . | . . Allies | -11 -10 -------- Run | Yrd Mat Total Allies . | . . Largest Group . | . . Highest-Rated Group . | . . Highest-Rated Ally . | . . Total Orders . | . . Ally Attacks . | . . Total Damage . | . . Kills . | . . Allies Corrupted . | . . Allies Melted . | . . Intel | -11 -10 ------- Run | Yrd Mat Robot Analysis Total . | . . Derelict Logs Recovered . | . . Drone Launches . | . . Drone Recoveries . | . . Exploration | -11 -10 ------------- Run | Yrd Mat Turns Passed 548 | 119 429 Spaces Moved 416 | 83 333 Core 24 | 17 7 Treads . | . . Legs . | . . Wheels 392 | 66 326 Hover . | . . Flight . | . . Fastest Speed 50 | 50 80 Average Speed 84 | 81 84 Slowest Speed 200 | 100 200 Overloaded Moves . | . . Propulsion Burnouts . | . . Robots Hopped . | . . Cave-ins Triggered . | . . Exploration Rate (%) 32 | 5 59 Regions Visited 1 Branch Regions . Pre-discovered Areas . | . . Known Exits Taken . | . . Unknown Exits Taken 1 | 1 . Scrap Searched . | . . Spaces Dug 9 | . 9 Terrain Destroyed 72 | . 72 Melee . | . . Projectile 1 | . 1 AOE 71 | . 71 Terrain Rammed . | . . Walls Destroyed . | . . Machines Disabled . | . . Actions | -11 -10 --------- Run | Yrd Mat Total 542 | 118 424 Wait 30 | . 30 Move 415 | 82 333 Hop . | . . Pick Up 25 | 17 8 Fast Attach 1 | . 1 Attach 15 | 7 8 Detach . | . . Swap 2 | 2 . Drop 5 | 2 3 Fire 49 | 8 41 Melee . | . . Ram . | . . Kick . | . . Crush . | . . Escape Stasis . | . . Rewire . | . . Trap . | . . Miscellaneous . | . . Route ------- -11/Scrapyard -10/Materials (discovered 3 exits: [*Mat x2] / [*Min]) History --------- Turn | Location | Event 27 | -11/Scrapyard | Discovered new exit (range 15) 120 | -11/Scrapyard | Entered Materials 256 | -10/Materials | Core integrity fell below 50% 266 | -10/Materials | Core integrity fell below 20% 306 | -10/Materials | Build established: Mutant 306 | -10/Materials | Lost 6 parts (1p2n1u2w) 369 | -10/Materials | Discovered new exit (range 11) 433 | -10/Materials | Discovered new exit (range 15) 515 | -10/Materials | Discovered new exit (range 15) 549 | -10/Materials | Destroyed self with Grenade Launcher Last Messages --------------- Acquired 33 matter. K-01 Serf collects debris. R-06 Scavenger collects Sml. Laser. R-06 Scavenger collects Lgt. Ion Engine. K-01 Serf collects debris. Connecting with Terminal... >>Trojan(Botnet) Trojan loaded successfully. Testing... Terminal linked with 1 system. Awaiting botnet instructions. >>Enumerate(Patrols) Retrieving latest reported positions... Found 1 active patrol squad. Downloaded coordinate data. K-01 Serf collects debris. EXIT=FOUND K-01 Serf collects debris. U-05 Engineer lays Concrete. EXIT=FOUND Map ----- +----------------------------------------------------+ | | | | | ###??#######??????????????????? | | ??# #?????????????????? | | "" #?# """ #?????????????????? | | "" #?# """ #?????????????????? | | "" #?# """ #?????????????????? | | #?# #?????????????????? | | ##?? ??????????????????? | | #########+####????????????????? | | #????????????????? | | ########### #????????????????? | | #?????????# #????????????????? | | #?????????# #????????????????? | | ##????????# #????????????????? | | "####?????# #????????????????? | | " #??????# #???#####????????? | | /"""####???# #?### ????????? | | = #???# #?# ###?????? | | = " #???# #?# ##???? | | = " #???# ### #???? | | *[ " ##### ## #???? | | [ ==[ + ## < ##??? | | % [ # #? #??? | | = ! = # ! #?? """ #??? | | ! + ! #??# """ @#???? | | ############ #??# """ #???? | | ???????????# #??# # #???? | | ???????????# #?######?# #???? | | ?????#######/### ! # #???? | | ?????# # # #???? | | ?????# # """ + #???? | | ?????# """ # """ # #???? | | ?????# """"" # """ # #???? | | ?????# """"" # ?# #???? | | ###### """"" ######?# #???? | | ## """ #??????# #???? | | ## ! #??????# #???? | | ######+############ #???? | | #???# #???? | | ##### #???? | | # #???? | | + ############?? | | # #?# #?? | | # ^ #?# #?? | | # ### #?? | | # # #?? | | # !!! ^ + #?? | | # !! || # % #?? | | ##### !! | # #?? | +----------------------------------------------------+ Best States ------------- Heat Dissipation 25 Energy Generation 10 Energy Capacity 250 Matter Stores 300 Matter Capacity 300 Sight Range 16 Terrain Scan Range 16 Terrain Scan Density 10 Evasion (%) 44 Authchip Count 2 Item Schematics ----------------- None Robot Schematics ------------------ None Fabricated ------------ Nothing Alien Tech Used ----------------- None Achievements -------------- None Challenges ------------ None Game ------ Seed BoreConstructWeb Manual? 0 Play Time 00:09:38 Cumulative 7.5 hours Start 2024.04.22 @ 22:25:03 End 2024.04.22 @ 22:33:27 Sessions 1 Manual Loads 0 Difficulty Rogue Special Mode None Game No. 8 Rogue 8 Adventurer 0 Explorer 0 Win Type - Total 0 Types 0/0/0/0/0/0/0/0/0 Lore% 8 Gallery% 13 Achievement% 15 Wizard Run 0 Options --------- Layout 1 ASCII 0 Keyboard 0 Movement Mouse Keybinds 0 Fullscreen 1 Font 24/Smallcaps Map View 50x35 Zoom Use 0% Tactical HUD 0 Map Filters NONE Filters NONE Steam 1 RUN: 6fc51e0e-b02f-459e-8803-00c4358dc1cc